[Event "BAN-chT Golden Jubilee 2021-22"]
[Site "Dhaka"]
[Date "2022.03.11"]
[Round "2.1"]
[White "Murshed, Niaz"]
[Black "Abu Sufian, Shakil"]
[Result "1-0"]
[ECO "D38"]
[WhiteElo "2418"]
[BlackElo "2232"]
[Annotator "ChessBase"]
[PlyCount "129"]
[EventDate "2022.03.10"]
[EventType "team-tourn"]
[EventCountry "BAN"]
[SourceTitle "playchess.com"]
[Source "ChessBase"]
[SourceQuality "1"]
[TimeControl "40/5400+30:1800+30"]

1. c4 {[%emt 0:00:06]} Nf6 {[%emt 0:00:35]} 2. Nc3 {[%emt 0:00:13]} e6 {[%emt 0:00:29]} 3. d4 {[%emt 0:03:22]} Bb4 {[%emt 0:02:45]} 4. Nf3 {[%emt 0:00:54]} d5 {[%emt 1:28:41]} 5. Qa4+ {[%emt 0:02:35]} Nc6 {[%emt 0:00:00]} 6. e3 {[%emt 0:00:04]} O-O {[%emt 0:00:00]} 7. Bd2 {[%emt 0:00:47]} dxc4 {[%emt 0:00:00]} 8. Bxc4 {[%emt 0:00:26]} Bd6 {[%emt 0:00:00]} 9. Qc2 {[%emt 1:26:33]} e5 {[%emt 0:00:00]} 10. d5 {[%emt 0:00:00]} Ne7 {[%emt 0:00:00]} 11. e4 {[%emt 0:00:00]} Bg4 {[%emt 0:00:00]} 12. Be2 {[%emt 0:00:00]} c6 {[%emt 0:00:00]} 13. h3 {[%emt 0:00:00]} Bh5 {[%emt 0:00:00]} 14. Bg5 {[%emt 0:00:00]} cxd5 {[%emt 0:00:00]} 15. exd5 {[%emt 0:00:00]} Qa5 {[%emt 0:00:00]} 16. Bxf6 {[%emt 0:00:00]} gxf6 {[%emt 0:00:00]} 17. O-O {[%emt 0:04:00]} Bg6 {[%emt 0:00:00]} 18. Qb3 {[%emt 0:00:00]} Qb4 {[%emt 0:00:00]} 19. Bc4 {[%emt 0:00:00]} Rac8 {[%emt 0:00:00]} 20. Nd2 {[%emt 0:01:30]} Rfd8 {[%emt 0:00:00]} 21. a3 {[%emt 0:00:00]} Qxb3 {[%emt 0:00:00]} 22. Bxb3 {[%emt 0:00:00]} Nf5 {[%emt 0:00:00]} 23. Nde4 {[%emt 0:00:00]} Nd4 {[%emt 0:00:00]} 24. Bd1 {[%emt 0:00:00]} f5 {[%emt 0:00:00]} 25. Nxd6 {[%emt 0:00:00]} Rxd6 {[%emt 0:00:00]} 26. f4 {[%emt 0:00:00]} f6 {[%emt 0:00:00]} 27. Re1 {[%emt 0:00:00]} Re8 {[%emt 0:11:30]} 28. Ba4 {[%emt 0:00:00]} Re7 {[%emt 0:00:00]} 29. Rad1 {[%emt 0:00:00]} Kf8 {[%emt 0:00:00]} 30. Rd3 {[%emt 0:05:00]} Bf7 {[%emt 0:00:00]} 31. Rde3 {[%emt 0:00:00]} Bxd5 {[%emt 0:00:00]} 32. fxe5 {[%emt 0:00:00]} fxe5 {[%emt 0:00:00]} 33. Rxe5 {[%emt 0:00:00]} Rxe5 {[%emt 0:00:00]} 34. Rxe5 {[%emt 0:00:00]} Be6 {[%emt 0:00:00]} 35. Kf2 {[%emt 0:00:00]} Kf7 {[%emt 0:00:00]} 36. Rc5 {[%emt 0:00:00]} Nc6 {[%emt 0:04:30]} 37. Ke3 {[%emt 0:00:00]} Bd7 {[%emt 0:00:30]} 38. Bb3+ {[%emt 0:01:05]} Ke8 {[%emt 0:00:30]} 39. Nb5 {[%emt 0:01:17]} Rg6 {[%emt 0:00:00]} 40. Bd5 {[%emt 0:00:00]} b6 {[%emt 0:01:00]} 41. Rc2 {[%emt 0:04:58]} Ne7 {[%emt 0:00:00]} 42. Nc7+ {[%emt 0:00:23]} Kd8 {[%emt 0:31:00]} 43. Bf3 {[%emt 0:00:08]} Nc6 {[%emt 0:00:00]} 44. Nb5 {[%emt 0:09:00]} Re6+ {[%emt 0:00:00]} 45. Kf4 {[%emt 0:02:53]} a6 {[%emt 0:00:00]} 46. Bxc6 {[%emt 0:05:11]} Rxc6 {[%emt 0:00:00]} 47. Nd4 {[%emt 0:00:22]} Rf6 {[%emt 0:00:00]} 48. Ke5 {[%emt 0:00:48]} Rf8 {[%emt 0:00:00]} 49. Ne6+ {[%emt 0:02:20]} Bxe6 {[%emt 0:00:00]} 50. Kxe6 {[%emt 0:00:03]} f4 {[%emt 0:00:00]} 51. Rf2 {[%emt 0:00:21]} Kc7 {[%emt 0:00:00]} 52. Ke5 {[%emt 0:01:15]} Kc6 {[%emt 0:05:00]} 53. Ke4 {[%emt 0:00:56]} Kc5 {[%emt 0:00:00]} 54. Rxf4 {[%emt 0:11:00]} Rxf4+ {[%emt 0:00:00]} 55. Kxf4 {[%emt 0:00:00]} Kc4 {[%emt 0:01:30]} 56. g4 {[%emt 0:00:00]} Kb3 {[%emt 0:00:00]} 57. g5 {[%emt 0:00:00]} Kxb2 {[%emt 0:00:00]} 58. h4 {[%emt 0:00:00]} Kxa3 {[%emt 0:00:00]} 59. h5 {[%emt 0:00:00]} b5 {[%emt 0:00:00]} 60. g6 {[%emt 0:00:00]} hxg6 {[%emt 0:00:00]} 61. h6 {[%emt 0:00:00]} b4 {[%emt 0:00:00]} 62. h7 {[%emt 0:00:00]} b3 {[%emt 0:00:00]} 63. h8=Q {[%emt 0:00:00]} b2 {[%emt 0:00:00]} 64. Qc3+ {[%emt 0:00:00]} Ka2 {[%emt 0:00:00]} 65. Qc4+ {[%emt 0:00:00]} 1-0

[Event "BAN-chT Golden Jubilee 2021-22"]
[Site "Dhaka"]
[Date "2022.03.12"]
[Round "3.4"]
[White "Reefat, Bin-Sattar"]
[Black "Ikramul, Haq Siam"]
[Result "1-0"]
[ECO "C02"]
[WhiteElo "2371"]
[BlackElo "2075"]
[Annotator "RC"]
[PlyCount "95"]
[EventDate "2022.03.10"]
[EventType "team-tourn"]
[EventCountry "BAN"]
[SourceTitle "playchess.com"]
[Source "ChessBase"]
[SourceQuality "1"]
[TimeControl "40/5400+30:1800+30"]

1. e4 {[%emt 0:02:41]} e6 {[%emt 0:02:12]} 2. d4 {[%emt 0:00:08]} d5 {[%emt 0:00:03]} 3. e5 {[%emt 0:00:24]} c5 {[%emt 0:00:02]} 4. c3 {[%emt 0:00:04]} Qb6 {[%emt 0:00:03]} 5. Nf3 {[%emt 0:00:05]} Nc6 {[%emt 0:00:12]} 6. a3 {[%emt 0:00:16]} Bd7 {[%emt 0:00:47]} 7. b4 {[%emt 0:04:12]} cxd4 {[%emt 0:00:22]} 8. cxd4 {[%emt 0:00:02]} Rc8 {[%emt 0:00:01]} 9. Be3 {[%emt 0:22:48]} Nh6 {[%emt 0:00:32]} 10. Bd3 {[%emt 0:00:20]} Ng4 {[%emt 0:00:02]} 11. O-O {[%emt 0:00:21]} Nxe3 {[%emt 0:00:48]} 12. fxe3 {[%emt 0:00:56]} Be7 {[%emt 0:02:21]} 13. Qe1 {[%emt 0:18:12]} O-O {[%emt 0:07:06]} 14. Nc3 {[%emt 0:00:31]} Qd8 {[%emt 0:06:06]} 15. e4 {[%emt 0:23:28]} dxe4 {[%emt 0:05:04]} 16. Qxe4 {[%emt 0:00:11]} g6 {[%emt 0:00:20]} 17. Rac1 {[%emt 0:00:14]} f5 {[%emt 0:02:33]} 18. exf6 {[%emt 0:09:17]} Bxf6 {[%emt 0:01:48]} 19. b5 {[%emt 0:00:12]} Ne7 {[%emt 0:02:52]} 20. Qxb7 {[%emt 0:00:14]} Qb6 {[%emt 0:03:36]} 21. Qxb6 {[%emt 0:02:56]} axb6 {[%emt 0:00:03]} 22. Ne4 {[%emt 0:00:06]} Bg7 {[%emt 0:01:22]} 23. Ne5 {[%emt 0:06:16]} Rxf1+ {[%emt 0:11:06]} 24. Rxf1 {[%emt 0:00:02]} Be8 {[%emt 0:00:01]} 25. Nf6+ {[%emt 0:04:24]} Kh8 {[%emt 0:00:36]} 26. Bc4 {[%emt 0:02:21]} Nd5 {[%emt 0:07:46]} 27. Bxd5 {[%emt 0:00:09]} exd5 {[%emt 0:00:51]} 28. a4 {[%emt 0:00:50]} Ra8 {[%emt 0:02:12]} 29. Nxd5 {[%emt 0:01:06]} Rxa4 {[%emt 0:01:46]} 30. Nc7 {[%emt 0:00:07]} Rxd4 {[%emt 0:26:24]} 31. Nxe8 {[%emt 0:00:05]} Rd5 {[%emt 0:04:43]} 32. Nf7+ {[%emt 0:00:21]} Kg8 {[%emt 0:00:01]} 33. Nfd6 {[%emt 0:00:06]} Bd4+ {[%emt 0:00:31]} 34. Kh1 {[%emt 0:00:13]} Be5 {[%emt 0:00:03]} 35. Nc8 {[%emt 0:03:27]} Rd7 {[%emt 0:01:12]} 36. g4 {[%emt 0:00:19]} Rf7 {[%emt 0:02:07]} 37. Rxf7 {[%emt 0:00:26]} Kxf7 {[%emt 0:00:01]} 38. Ned6+ {[%emt 0:00:08]} Ke6 {[%emt 0:00:25]} 39. Nc4 {[%emt 0:00:05]} Bc7 {[%emt 0:02:29]} 40. N8xb6 {[%emt 0:00:00]} h5 {[%emt 0:00:00]} 41. h3 {[%emt 0:00:43]} Bd8 {[%emt 0:01:05]} 42. Kg2 {[%emt 0:00:08]} Bc7 {[%emt 0:00:01]} 43. Kf3 {[%emt 0:00:06]} Bd8 {[%emt 0:00:06]} 44. Ke4 {[%emt 0:00:09]} Bc7 {[%emt 0:00:02]} 45. Nd5 {[%emt 0:00:27]} Bb8 {[%emt 0:00:13]} 46. b6 {[%emt 0:00:46]} hxg4 {[%emt 0:00:05]} 47. hxg4 {[%emt 0:00:05]} g5 {[%emt 0:00:17]} 48. Nb4 {[%emt 0:34:03]} 1-0

[Event "BAN-chT Golden Jubilee 2021-22"]
[Site "Dhaka"]
[Date "2022.03.12"]
[Round "3.9"]
[White "Shawket Bin, Osman Shaon"]
[Black "Islam, Khandaker Aminul"]
[Result "1/2-1/2"]
[ECO "E20"]
[WhiteElo "2065"]
[BlackElo "2153"]
[Annotator "ChessBase"]
[PlyCount "95"]
[EventDate "2022.03.10"]
[EventType "team-tourn"]
[EventCountry "BAN"]
[SourceTitle "playchess.com"]
[Source "ChessBase"]
[SourceQuality "1"]
[TimeControl "40/5400+30:1800+30"]

1. d4 {[%emt 0:00:04]} Nf6 {[%emt 0:00:03]} 2. c4 {[%emt 0:00:26]} e6 {[%emt 0:00:04]} 3. Nc3 {[%emt 0:00:04]} Bb4 {[%emt 0:00:24]} 4. f3 {[%emt 0:00:31]} c5 {[%emt 0:01:05]} 5. d5 {[%emt 0:00:12]} d6 {[%emt 0:07:34]} 6. e4 {[%emt 0:04:14]} O-O {[%emt 0:04:25]} 7. Bd2 {[%emt 0:07:30]} Re8 {[%emt 0:03:00]} 8. Kf2 {[%emt 0:02:39]} Na6 {[%emt 0:07:56]} 9. Nge2 {[%emt 0:04:29]} Nc7 {[%emt 0:01:32]} 10. Nf4 {[%emt 0:08:38]} Ba5 {[%emt 0:05:45]} 11. Be2 {[%emt 0:06:44]} a6 {[%emt 0:03:41]} 12. Qc2 {[%emt 0:14:31]} exd5 {[%emt 0:01:38]} 13. exd5 {[%emt 0:13:07]} b5 {[%emt 0:03:39]} 14. b3 {[%emt 0:02:12]} Qe7 {[%emt 0:09:35]} 15. Bd3 {[%emt 0:04:16]} Bxc3 {[%emt 0:25:04]} 16. Qxc3 {[%emt 0:00:12]} Nd7 {[%emt 0:01:04]} 17. Rae1 {[%emt 0:07:53]} Qh4+ {[%emt 0:02:38]} 18. g3 {[%emt 0:00:26]} Qd8 {[%emt 0:00:17]} 19. Qc2 {[%emt 0:05:05]} Nf8 {[%emt 0:00:27]} 20. Bc3 {[%emt 0:01:10]} b4 {[%emt 0:06:15]} 21. Bb2 {[%emt 0:01:24]} g6 {[%emt 0:08:35]} 22. h4 {[%emt 0:01:31]} Ra7 {[%emt 0:01:43]} 23. Ba1 {[%emt 0:03:12]} f6 {[%emt 0:00:48]} 24. g4 {[%emt 0:02:07]} Rxe1 {[%emt 0:01:44]} 25. Rxe1 {[%emt 0:00:17]} Ne8 {[%emt 0:00:05]} 26. h5 {[%emt 0:01:57]} g5 {[%emt 0:00:22]} 27. Ng2 {[%emt 0:00:31]} Re7 {[%emt 0:00:35]} 28. Ne3 {[%emt 0:00:32]} a5 {[%emt 0:00:14]} 29. Bf5 {[%emt 0:00:35]} Bxf5 {[%emt 0:01:09]} 30. Nxf5 {[%emt 0:00:02]} Rxe1 {[%emt 0:00:10]} 31. Kxe1 {[%emt 0:00:26]} Nd7 {[%emt 0:00:21]} 32. Nh6+ {[%emt 0:02:31]} Kg7 {[%emt 0:00:16]} 33. Nf5+ {[%emt 0:00:05]} Kg8 {[%emt 0:00:10]} 34. Qe4 {[%emt 0:00:20]} Ne5 {[%emt 0:00:09]} 35. Nh6+ {[%emt 0:01:39]} Kg7 {[%emt 0:00:03]} 36. Nf5+ {[%emt 0:00:05]} Kg8 {[%emt 0:00:05]} 37. Bxe5 {[%emt 0:00:40]} fxe5 {[%emt 0:00:15]} 38. Ng3 {[%emt 0:03:09]} Qf6 {[%emt 0:00:24]} 39. Qf5 {[%emt 0:00:36]} Qxf5 {[%emt 0:00:15]} 40. Nxf5 {[%emt 0:00:00]} Kf7 {[%emt 0:00:00]} 41. Ke2 {[%emt 0:00:35]} Kf8 {[%emt 0:03:04]} 42. Ke3 {[%emt 0:04:12]} Kf7 {[%emt 0:00:17]} 43. h6 {[%emt 0:11:31]} Kg6 {[%emt 0:11:58]} 44. Ke4 {[%emt 0:01:17]} Nf6+ {[%emt 0:00:06]} 45. Ke3 {[%emt 0:00:01]} Ne8 {[%emt 0:00:11]} 46. Ke4 {[%emt 0:00:49]} Nf6+ {[%emt 0:00:02]} 47. Ke3 {[%emt 0:00:08]} Ne8 {[%emt 0:00:02]} 48. Ke4 {[%emt 0:19:55]} 1/2-1/2

[Event "BAN-chT Golden Jubilee 2021-22"]
[Site "Dhaka"]
[Date "2022.03.12"]
[Round "3.17"]
[White "Hossain, Showkat Pollab"]
[Black "Rahman, Syed Mahfuzur"]
[Result "0-1"]
[ECO "B73"]
[WhiteElo "2037"]
[BlackElo "2099"]
[Annotator "RC"]
[PlyCount "56"]
[EventDate "2022.03.10"]
[EventType "team-tourn"]
[EventCountry "BAN"]
[SourceTitle "playchess.com"]
[Source "ChessBase"]
[SourceQuality "1"]
[TimeControl "40/5400+30:1800+30"]

1. e4 {[%emt 0:00:03]} d6 {[%emt 0:06:05]} 2. d4 {[%emt 0:00:05]} Nf6 {[%emt 0:00:04]} 3. Nc3 {[%emt 0:00:28]} g6 {[%emt 0:00:03]} 4. h3 {[%emt 0:00:09]} Bg7 {[%emt 0:00:03]} 5. Nf3 {[%emt 0:00:06]} O-O {[%emt 0:00:02]} 6. Be2 {[%emt 0:00:05]} c5 {[%emt 0:00:37]} 7. Be3 {[%emt 0:05:11]} cxd4 {[%emt 0:03:22]} 8. Nxd4 {[%emt 0:04:53]} Nc6 {[%emt 0:00:14]} 9. O-O {[%emt 0:07:57]} Bd7 {[%emt 0:01:08]} 10. Nb3 {[%emt 0:07:10]} a6 {[%emt 0:04:33]} 11. a4 {[%emt 0:02:23]} Rc8 {[%emt 0:04:14]} 12. Nd2 {[%emt 0:13:53]} Be6 {[%emt 0:07:35]} 13. Nf3 {[%emt 0:08:40]} d5 {[%emt 0:24:04]} 14. exd5 {[%emt 0:03:53]} Nxd5 {[%emt 0:00:54]} 15. Nxd5 {[%emt 0:00:27]} Bxd5 {[%emt 0:00:10]} 16. c3 {[%emt 0:04:47]} e5 {[%emt 0:06:56]} 17. c4 {[%emt 0:05:53]} Be6 {[%emt 0:02:54]} 18. Ng5 {[%emt 0:03:49]} Bf5 {[%emt 0:06:11]} 19. Qxd8 {[%emt 0:05:58]} Rfxd8 {[%emt 0:01:03]} 20. Bf3 {[%emt 0:05:48]} h6 {[%emt 0:08:19]} 21. Ne4 {[%emt 0:01:52]} Nd4 {[%emt 0:00:39]} 22. Bxd4 {[%emt 0:01:36]} Rxd4 {[%emt 0:00:47]} 23. Nc3 {[%emt 0:01:35]} e4 {[%emt 0:02:29]} 24. g4 {[%emt 0:05:18]} exf3 {[%emt 0:02:21]} 25. gxf5 {[%emt 0:00:01]} Rc6 {[%emt 0:18:13]} 26. c5 Rxc5 {[%emt 0:00:00]} 27. fxg6 {[%emt 0:01:35]} Rcc4 {[%emt 0:00:00]} 28. gxf7+ {[%emt 0:00:00]} Kxf7 {[%emt 0:00:00]} 0-1

[Event "BAN-chT Golden Jubilee 2021-22"]
[Site "Dhaka"]
[Date "2022.03.13"]
[Round "4.12"]
[White "Bhuiyan, Golam Mostafa"]
[Black "Asif, Mahmud"]
[Result "1/2-1/2"]
[ECO "D85"]
[WhiteElo "2104"]
[BlackElo "1928"]
[Annotator "NA"]
[PlyCount "90"]
[EventDate "2022.03.10"]
[EventType "team-tourn"]
[EventCountry "BAN"]
[SourceTitle "playchess.com"]
[Source "ChessBase"]
[SourceQuality "1"]
[TimeControl "40/5400+30:1800+30"]

1. d4 {[%emt 0:00:03]} Nf6 {[%emt 0:03:22]} 2. c4 {[%emt 0:00:02]} g6 {[%emt 0:00:18]} 3. Nc3 {[%emt 0:00:02]} d5 {[%emt 0:00:41]} 4. cxd5 {[%emt 0:00:42]} Nxd5 {[%emt 0:00:12]} 5. e4 {[%emt 0:00:02]} Nxc3 {[%emt 0:00:12]} 6. bxc3 {[%emt 0:00:01]} Bg7 {[%emt 0:00:19]} 7. a4 {[%emt 0:02:36]} c5 {[%emt 0:07:30]} 8. Bb5+ {[%emt 0:00:11]} Nc6 {[%emt 0:04:42]} 9. Ne2 {[%emt 0:03:34]} cxd4 {[%emt 0:08:42]} 10. cxd4 {[%emt 0:02:05]} O-O {[%emt 0:00:16]} 11. Be3 {[%emt 0:00:18]} Qa5+ {[%emt 0:09:40]} 12. Bd2 {[%emt 0:00:34]} Qb6 {[%emt 0:03:59]} 13. Be3 {[%emt 0:00:38]} Qa5+ {[%emt 0:00:18]} 14. Bd2 {[%emt 0:06:47]} Qb6 {[%emt 0:00:13]} 15. Bc3 {[%emt 0:00:47]} Rd8 {[%emt 0:05:38]} 16. d5 {[%emt 0:11:03]} e6 {[%emt 0:09:00]} 17. Bxg7 {[%emt 0:04:17]} Kxg7 {[%emt 0:00:15]} 18. O-O {[%emt 0:00:04]} exd5 {[%emt 0:00:55]} 19. exd5 {[%emt 0:00:04]} Ne7 {[%emt 0:05:45]} 20. Nf4 {[%emt 0:02:34]} Nxd5 {[%emt 0:08:52]} 21. Nxd5 {[%emt 0:00:25]} Qc5 {[%emt 0:00:15]} 22. Rc1 {[%emt 0:04:45]} Qxd5 {[%emt 0:00:31]} 23. Qxd5 {[%emt 0:00:49]} Rxd5 {[%emt 0:00:08]} 24. Rc7 {[%emt 1:00:07]} a6 {[%emt 0:02:34]} 25. Bc4 {[%emt 0:00:00]} Rd7 {[%emt 0:00:08]} 26. Rc5 {[%emt 0:00:00]} Re7 {[%emt 0:02:05]} 27. Bd5 {[%emt 0:00:00]} Bf5 {[%emt 0:04:24]} 28. h3 {[%emt 0:00:00]} h5 {[%emt 0:02:16]} 29. Rfc1 {[%emt 0:00:00]} Rd8 {[%emt 0:02:28]} 30. Bf3 {[%emt 0:00:00]} Rdd7 {[%emt 0:02:05]} 31. a5 {[%emt 0:00:00]} Be4 {[%emt 0:03:19]} 32. R5c3 {[%emt 0:00:00]} Bxf3 {[%emt 0:00:40]} 33. Rxf3 {[%emt 0:00:00]} Rd5 {[%emt 0:00:35]} 34. Ra1 {[%emt 0:00:00]} Ree5 {[%emt 0:00:24]} 35. Rfa3 {[%emt 0:00:00]} Rb5 {[%emt 0:00:20]} 36. h4 {[%emt 0:00:00]} Rb2 {[%emt 0:03:00]} 37. Rf3 {[%emt 0:00:00]} Ree2 {[%emt 0:00:45]} 38. Rd1 {[%emt 0:00:00]} Red2 {[%emt 0:02:58]} 39. Rc1 {[%emt 0:00:00]} Rd6 {[%emt 0:02:50]} 40. Rfc3 {[%emt 0:00:00]} Rf6 {[%emt 0:00:00]} 41. R3c2 {[%emt 0:00:00]} Rxc2 {[%emt 0:03:14]} 42. Rxc2 {[%emt 0:00:00]} Rf5 {[%emt 0:00:17]} 43. Rc7 {[%emt 0:00:00]} Rb5 {[%emt 0:05:54]} 44. Kh2 {[%emt 0:00:00]} Kf6 {[%emt 0:02:33]} 45. f3 {[%emt 0:00:00]} Ke5 {[%emt 0:28:28]} 1/2-1/2

[Event "BAN-chT Golden Jubilee 2021-22"]
[Site "Dhaka"]
[Date "2022.03.13"]
[Round "4.20"]
[White "Chatterjee, Debaraj"]
[Black "Anata, Choudhury"]
[Result "1/2-1/2"]
[ECO "E11"]
[WhiteElo "2196"]
[BlackElo "2170"]
[Annotator "ChessBase"]
[PlyCount "111"]
[EventDate "2022.03.10"]
[EventType "team-tourn"]
[EventCountry "BAN"]
[SourceTitle "playchess.com"]
[Source "ChessBase"]
[SourceQuality "1"]
[TimeControl "40/5400+30:1800+30"]

1. d4 {[%emt 0:01:40]} Nf6 {[%emt 0:00:16]} 2. c4 {[%emt 0:00:15]} e6 {[%emt 0:00:12]} 3. Nf3 {[%emt 0:00:07]} d5 {[%emt 0:00:09]} 4. g3 {[%emt 0:00:18]} Bb4+ {[%emt 0:00:19]} 5. Bd2 {[%emt 0:00:25]} a5 {[%emt 0:00:16]} 6. Bg2 {[%emt 0:01:03]} O-O {[%emt 0:00:20]} 7. O-O {[%emt 0:02:15]} dxc4 {[%emt 0:00:47]} 8. Qc2 {[%emt 0:01:04]} b5 {[%emt 0:05:18]} 9. a4 {[%emt 0:00:42]} c6 {[%emt 0:00:30]} 10. axb5 {[%emt 0:02:28]} Bxd2 {[%emt 0:01:09]} 11. Nfxd2 {[%emt 0:03:19]} Nd5 {[%emt 0:03:07]} 12. Na3 {[%emt 0:30:12]} cxb5 {[%emt 0:01:53]} 13. Nxb5 {[%emt 0:00:12]} Ba6 {[%emt 0:00:31]} 14. Nc3 {[%emt 0:12:02]} Nc6 {[%emt 0:01:11]} 15. e3 {[%emt 0:03:13]} Rb8 {[%emt 0:20:42]} 16. Rfb1 {[%emt 0:01:37]} Rb4 {[%emt 0:21:43]} 17. Na2 {[%emt 0:06:42]} Bb5 {[%emt 0:09:32]} 18. Nxb4 {[%emt 0:04:43]} Ncxb4 {[%emt 0:00:10]} 19. Qc1 {[%emt 0:07:58]} Nd3 {[%emt 0:00:15]} 20. Qd1 {[%emt 0:20:15]} c3 {[%emt 0:32:10]} 21. Ne4 {[%emt 0:00:30]} Nxb2 {[%emt 0:00:00]} 22. Qb3 {[%emt 0:00:00]} Bc4 {[%emt 0:00:00]} 23. Qa3 {[%emt 0:00:00]} Bd3 {[%emt 0:00:00]} 24. Rc1 {[%emt 0:00:00]} Nc4 {[%emt 0:00:00]} 25. Qa4 {[%emt 0:00:00]} c2 {[%emt 0:00:00]} 26. Rxc2 {[%emt 0:00:53]} Ncb6 {[%emt 0:00:40]} 27. Qb3 {[%emt 0:00:44]} Bxc2 {[%emt 0:00:24]} 28. Qxc2 {[%emt 0:00:02]} a4 {[%emt 0:00:55]} 29. Nc5 {[%emt 0:00:48]} Qc7 {[%emt 0:00:17]} 30. Qb1 {[%emt 0:01:04]} Rd8 {[%emt 0:00:26]} 31. Bxd5 {[%emt 0:00:55]} Rxd5 {[%emt 0:00:23]} 32. Nxa4 {[%emt 0:00:23]} Nxa4 {[%emt 0:00:32]} 33. Rxa4 {[%emt 0:00:02]} g6 {[%emt 0:00:19]} 34. Rb4 {[%emt 0:00:20]} Kg7 {[%emt 0:00:56]} 35. Rb7 {[%emt 0:00:18]} Qc3 {[%emt 0:00:26]} 36. Rb3 {[%emt 0:00:37]} Qd2 {[%emt 0:01:21]} 37. Rb2 {[%emt 0:00:38]} Qa5 {[%emt 0:00:41]} 38. Qc1 {[%emt 0:01:12]} Qa8 {[%emt 0:00:53]} 39. Rb1 {[%emt 0:00:28]} Ra5 {[%emt 0:00:37]} 40. Qc3 {[%emt 0:00:00]} Ra3 {[%emt 0:00:00]} 41. Qc7 {[%emt 0:05:22]} Qe4 {[%emt 0:02:02]} 42. Qb7 {[%emt 0:04:28]} Qf5 {[%emt 0:01:31]} 43. Kg2 {[%emt 0:02:13]} Ra2 {[%emt 0:00:23]} 44. Rb2 {[%emt 0:03:48]} Ra1 {[%emt 0:00:26]} 45. e4 {[%emt 0:02:00]} Qg4 {[%emt 0:01:25]} 46. f3 {[%emt 0:00:24]} Qg5 {[%emt 0:00:31]} 47. Qc7 {[%emt 0:08:51]} Rc1 {[%emt 0:12:07]} 48. Rc2 {[%emt 0:01:55]} Rd1 {[%emt 0:01:17]} 49. Qc3 {[%emt 0:00:21]} Qb5 {[%emt 0:00:37]} 50. d5+ {[%emt 0:02:32]} Kh6 {[%emt 0:00:32]} 51. Rf2 {[%emt 0:02:07]} exd5 {[%emt 0:02:24]} 52. Qe5 {[%emt 0:00:21]} Qd7 {[%emt 0:01:04]} 53. g4 {[%emt 0:01:18]} dxe4 {[%emt 0:01:58]} 54. Qxe4 {[%emt 0:01:02]} Qd4 {[%emt 0:01:14]} 55. Qxd4 {[%emt 0:00:13]} Rxd4 {[%emt 0:00:05]} 56. Kg3 {[%emt 0:00:22]} 1/2-1/2

[Event "BAN-chT Golden Jubilee 2021-22"]
[Site "Dhaka"]
[Date "2022.03.13"]
[Round "4.21"]
[White "Manon, Reja Neer"]
[Black "Mohammed Abdul, Malek"]
[Result "1-0"]
[ECO "D78"]
[WhiteElo "2209"]
[BlackElo "2148"]
[Annotator "ChessBase"]
[PlyCount "53"]
[EventDate "2022.03.10"]
[EventType "team-tourn"]
[EventCountry "BAN"]
[SourceTitle "playchess.com"]
[Source "ChessBase"]
[SourceQuality "1"]
[TimeControl "40/5400+30:1800+30"]

1. Nf3 {[%emt 0:00:16]} d5 {[%emt 0:00:07]} 2. g3 {[%emt 0:01:32]} Nf6 {[%emt 0:00:23]} 3. Bg2 {[%emt 0:00:04]} g6 {[%emt 0:00:23]} 4. d4 {[%emt 0:03:00]} Bg7 {[%emt 0:00:08]} 5. c4 {[%emt 0:01:10]} c6 {[%emt 0:00:06]} 6. Nc3 {[%emt 0:10:28]} O-O {[%emt 0:01:20]} 7. O-O {[%emt 0:05:13]} b6 {[%emt 0:07:19]} 8. Bf4 {[%emt 0:02:42]} Bb7 {[%emt 0:01:18]} 9. Qb3 {[%emt 0:16:27]} dxc4 {[%emt 0:05:29]} 10. Qxc4 {[%emt 0:01:18]} Nd5 {[%emt 0:00:38]} 11. Qb3 {[%emt 0:09:20]} Nxf4 {[%emt 0:05:09]} 12. gxf4 {[%emt 0:00:12]} Qd6 {[%emt 0:00:21]} 13. e3 {[%emt 0:00:55]} Nd7 {[%emt 0:07:33]} 14. Ne5 {[%emt 0:06:01]} Nf6 {[%emt 0:01:27]} 15. Nb5 {[%emt 0:05:15]} cxb5 {[%emt 0:00:52]} 16. Bxb7 {[%emt 0:00:03]} Rab8 {[%emt 0:00:41]} 17. Bg2 {[%emt 0:05:57]} a6 {[%emt 1:05:46]} 18. Rac1 {[%emt 0:00:11]} Rbd8 {[%emt 0:00:00]} 19. Rc6 {[%emt 0:03:01]} Qb8 {[%emt 0:00:00]} 20. Rfc1 {[%emt 0:03:33]} e6 {[%emt 0:00:00]} 21. Qa3 {[%emt 0:06:45]} a5 {[%emt 0:00:00]} 22. Qd3 {[%emt 0:00:49]} b4 {[%emt 0:00:00]} 23. Qa6 {[%emt 0:03:40]} Nd5 {[%emt 0:00:00]} 24. Nd3 {[%emt 0:03:07]} Bxd4 {[%emt 0:00:00]} 25. exd4 {[%emt 0:02:41]} Nxf4 {[%emt 0:00:00]} 26. Rxb6 {[%emt 0:00:27]} Ne2+ {[%emt 0:00:00]} 27. Kh1 {[%emt 0:00:07]} 1-0